bitfinex/quotes_BTCUSD_20250903
["timestamp","ask_amount","ask_price","bid_price","bid_amount"]
[1756875826428,1.91120597,111170.0,111160.0,0.00797]
[1756875826577,1.47430597,111170.0,111160.0,0.00797]
[1756875826979,1.44247129,111170.0,111160.0,0.00797]
[1756875827387,1.44247129,111170.0,111160.0,0.003]
[1756875830052,1.87228498,111170.0,111160.0,0.003]
[1756875830232,1.71696439,111170.0,111160.0,0.003]
[1756875830439,1.86692439,111170.0,111160.0,0.003]
[1756875830798,1.89397407,111170.0,111160.0,0.003]
[1756875832040,1.86783645,111170.0,111160.0,0.003]
[1756875834184,1.86785329,111170.0,111160.0,0.003]
[1756875834797,1.71789329,111170.0,111160.0,0.003]
[1756875835001,1.86793329,111170.0,111160.0,0.003]
[1756875836638,1.71789329,111170.0,111160.0,0.003]
[1756875836937,1.86469329,111170.0,111160.0,0.003]
[1756875838603,1.34184965,111170.0,111160.0,0.00797]
[1756875838811,0.68147753,111170.0,111160.0,0.18789083]
[1756875839006,1.28773715,111170.0,111160.0,0.18789083]
[1756875839232,1.4676418,111170.0,111160.0,0.18789083]
[1756875839434,1.44059212,111170.0,111160.0,0.18789083]
[1756875839881,0.67750419,111170.0,111160.0,0.18789083]
[1756875840085,0.65811701,111170.0,111160.0,0.18789083]
[1756875840326,0.34004687,111170.0,111160.0,0.18789083]
[1756875840514,0.65811701,111170.0,111160.0,0.18789083]
[1756875840722,0.97618715,111170.0,111160.0,0.18789083]
[1756875841480,0.76453653,111170.0,111160.0,0.18789083]
[1756875842336,4.687e-05,111170.0,111160.0,0.18789083]
[1756875842542,0.76453653,111170.0,111160.0,0.18789083]
[1756875844392,0.94640118,111170.0,111160.0,0.18789083]
[1756875844599,1.09644118,111170.0,111160.0,0.003]
[1756875845223,1.09644118,111170.0,111160.0,0.18493083]
[1756875845630,0.67195152,111170.0,111160.0,0.18493083]
[1756875845805,1.09644118,111170.0,111160.0,0.18789083]
[1756875846446,1.09644118,111170.0,111160.0,0.00501]
[1756875847335,1.09644118,111170.0,111160.0,0.18789083]
[1756875847540,0.91457653,111170.0,111160.0,0.18789083]
[1756875847762,0.76453653,111170.0,111160.0,0.18789083]
[1756875847956,0.91465653,111170.0,111160.0,0.18789083]
[1756875848305,0.76453653,111170.0,111160.0,0.18789083]
[1756875848706,0.76453653,111170.0,111160.0,0.33801083]
[1756875849130,0.76453653,111170.0,111160.0,0.36226083]
[1756875849131,4.687e-05,111170.0,111160.0,0.36226083]
[1756875849335,0.42453653,111170.0,111160.0,0.42566083]
[1756875849738,4.687e-05,111170.0,111160.0,0.42566083]
[1756875850156,4.687e-05,111170.0,111160.0,0.51757682]
[1756875851174,0.42453653,111170.0,111160.0,0.51761682]
[1756875851415,0.42453653,111170.0,111160.0,0.36745682]
[1756875851641,0.42453653,111170.0,111160.0,0.49336682]
[1756875851857,0.42649653,111170.0,111160.0,0.39849083]
[1756875852275,0.42649653,111170.0,111160.0,0.40165083]
[1756875852487,0.42649653,111170.0,111160.0,0.33837083]
[1756875853630,0.42453653,111170.0,111160.0,0.33837083]
[1756875853831,4.687e-05,111170.0,111160.0,0.33837083]
[1756875861398,4.687e-05,111170.0,111160.0,0.18809083]
[1756875861601,4.687e-05,111170.0,111160.0,0.33312083]
[1756875861602,0.42649653,111170.0,111160.0,0.33312083]
[1756875862603,0.42453653,111170.0,111160.0,0.33827083]
[1756875863135,0.42453653,111170.0,111160.0,0.18807083]
[1756875863325,0.42453653,111170.0,111160.0,0.33827083]
[1756875864575,4.687e-05,111170.0,111160.0,0.33827083]
[1756875865602,0.42649653,111170.0,111160.0,0.33507083]
[1756875866835,0.42453653,111170.0,111160.0,0.33823083]
[1756875868725,4.687e-05,111170.0,111160.0,0.33823083]
[1756875870326,4.687e-05,111170.0,111160.0,0.43014682]
[1756875870691,4.687e-05,111170.0,111160.0,0.49354682]
[1756875871738,4.687e-05,111170.0,111160.0,0.52058686]
[1756875872257,4.687e-05,111170.0,111160.0,0.94507652]
[1756875872667,4.687e-05,111170.0,111160.0,0.96932652]
[1756875872876,1e-08,111170.0,111160.0,0.99026534]
[1756875873103,0.8469627,111210.0,111200.0,0.17985611]
[1756875873360,0.50896964,111210.0,111200.0,0.33230431]
[1756875873559,0.51217964,111210.0,111200.0,0.33005611]
[1756875873938,0.85217964,111210.0,111200.0,0.33005611]
[1756875874133,0.77863333,111210.0,111200.0,0.33105611]
[1756875876941,0.95847327,111210.0,111200.0,0.001]
[1756875877153,1.4127597,111210.0,111200.0,0.001]
[1756875880012,1.50467569,111210.0,111200.0,0.001]
[1756875883099,1.94157569,111210.0,111200.0,0.001]
[1756875890640,1.63454937,111210.0,111200.0,0.001]
[1756875890839,1.65770264,111210.0,111200.0,0.001]
[1756875891241,1.68474466,111210.0,111200.0,0.001]
[1756875893768,1.83486466,111210.0,111200.0,0.001]
[1756875894628,1.83487093,111210.0,111200.0,0.001]
[1756875896130,1.81803211,111210.0,111200.0,0.001]
[1756875896636,1.83487879,111210.0,111200.0,0.001]
[1756875902294,1.86755919,111210.0,111200.0,0.001]
[1756875902520,1.85913318,111210.0,111200.0,0.001]
[1756875903574,2.92035172,111210.0,111200.0,0.001]
[1756875903789,2.92877647,111210.0,111200.0,0.001]
[1756875908463,2.92878645,111210.0,111200.0,0.001]
[1756875911730,2.92879202,111210.0,111200.0,0.001]
[1756875914029,3.02070801,111210.0,111200.0,0.001]
[1756875914235,2.96118162,111210.0,111200.0,0.001]
[1756875915153,2.93793369,111210.0,111200.0,0.001]
[1756875915319,2.96221155,111210.0,111200.0,0.001]
[1756875915515,0.54081111,111190.0,111180.0,0.00325]
[1756875915756,1.75722954,111190.0,111180.0,0.00325]
[1756875915954,1.78903631,111190.0,111180.0,0.00523]
[1756875916122,1.81608202,111190.0,111180.0,0.00523]
[1756875916560,1.84854287,111190.0,111180.0,0.00198]
[1756875916760,0.17988846,111180.0,111170.0,0.00325]
[1756875916967,1.8155189,111180.0,111170.0,0.00325]
[1756875917167,1.81380338,111180.0,111170.0,0.00523]
[1756875917527,1.84084938,111180.0,111170.0,0.00523]
[1756875918349,1.84084938,111180.0,111170.0,0.00623]
[1756875918556,2.18084938,111180.0,111170.0,0.00623]
[1756875918798,3.23425979,111180.0,111170.0,0.001]
[1756875919014,3.39902012,111180.0,111170.0,0.003]
[1756875919247,3.41588522,111180.0,111170.0,0.003]
[1756875919449,3.34824709,111180.0,111170.0,0.003]
[1756875920245,3.34824709,111180.0,111170.0,0.001]
[1756875920458,0.17992083,111160.0,111150.0,0.00325]
[1756875920663,1.37877127,111160.0,111150.0,0.00325]
[1756875920870,1.40685252,111160.0,111150.0,0.00523]
[1756875921684,1.40685252,111160.0,111150.0,0.00537085]
[1756875922635,1.25673252,111160.0,111150.0,0.00737085]
[1756875922844,1.40406665,111160.0,111150.0,0.00737085]
[1756875923976,1.40607665,111160.0,111150.0,0.00737085]
[1756875924190,1.37701575,111160.0,111150.0,0.00737085]
[1756875924810,1.37701575,111160.0,111150.0,0.00837085]
[1756875925235,1.37902575,111160.0,111150.0,0.00837085]
[1756875926899,1.40882252,111160.0,111150.0,0.00837085]
[1756875927721,1.40882252,111160.0,111150.0,0.00737085]
[1756875927923,1.40882252,111160.0,111150.0,0.00537085]
[1756875928448,1.40882252,111160.0,111150.0,0.00637085]
[1756875929987,1.76976134,111160.0,111150.0,0.00637085]
[1756875930191,1.76976134,111160.0,111150.0,0.00114085]
[1756875930192,2.74425104,111160.0,111150.0,0.00114085]
[1756875930584,2.77130365,111160.0,111150.0,0.00114085]
[1756875931057,2.77130365,111160.0,111150.0,0.00312085]
[1756875931508,1.81620472,111160.0,111150.0,0.00312085]
[1756875932889,1.81620472,111160.0,111150.0,0.00637085]
[1756875933724,1.81620472,111160.0,111150.0,0.00312085]
[1756875933926,1.81620472,111160.0,111150.0,0.00114085]
[1756875934433,1.83303203,111160.0,111150.0,0.00114085]
[1756875934631,1.83303203,111160.0,111150.0,0.00312085]
[1756875935813,1.83303203,111160.0,111150.0,0.00637085]
[1756875936008,0.7258431,111160.0,111150.0,0.00637085]
[1756875936260,0.84620633,111160.0,111150.0,0.00637085]
[1756875936455,1.80331526,111160.0,111150.0,0.00637085]
[1756875936678,1.8096257,111160.0,111150.0,0.00637085]
[1756875937692,1.8127457,111160.0,111150.0,0.00114085]
[1756875937904,1.8096257,111160.0,111150.0,0.00637085]
[1756875938107,1.8098657,111160.0,111150.0,0.00637085]
[1756875940322,1.8098657,111160.0,111150.0,0.00312085]
[1756875942007,1.8098657,111160.0,111150.0,0.00114085]
[1756875942620,1.80988135,111160.0,111150.0,0.00114085]
[1756875943803,1.84291812,111160.0,111150.0,0.00114085]
[1756875944567,1.84291812,111160.0,111150.0,0.00014085]
[1756875944968,1.84391812,111160.0,111150.0,0.00014085]
[1756875945501,1.84491812,111160.0,111150.0,0.00014085]
[1756875946716,1.84067812,111160.0,111150.0,0.00014085]
[1756875946919,1.84167812,111160.0,111150.0,0.00014085]
[1756875947351,1.86595598,111160.0,111150.0,0.00014085]
[1756875948067,1.86919598,111160.0,111150.0,0.00014085]
[1756875951540,2.94234852,111160.0,111150.0,0.00014085]
[1756875951786,2.95046026,111160.0,111150.0,0.00014085]
[1756875952023,2.99904466,111160.0,111150.0,0.00014085]
[1756875952265,2.95046026,111160.0,111150.0,0.00014085]
[1756875953002,2.96665506,111160.0,111150.0,0.00014085]
[1756875953246,2.87473907,111160.0,111150.0,0.00014085]
[1756875954420,2.87677907,111160.0,111150.0,0.00014085]
[1756875957836,2.72433907,111160.0,111150.0,0.00014085]
[1756875958051,2.87685907,111160.0,111150.0,0.00014085]
[1756875959608,2.87681907,111160.0,111150.0,0.00014085]
[1756875961826,2.72433907,111160.0,111150.0,0.00014085]
[1756875962073,2.87677907,111160.0,111150.0,0.00014085]
[1756875963164,2.72433907,111160.0,111150.0,0.00014085]
[1756875963372,2.87152907,111160.0,111150.0,0.00535085]
[1756875963585,1.81308389,111160.0,111150.0,0.00214085]
[1756875964189,1.78694627,111160.0,111150.0,0.00214085]
[1756875964812,1.78690627,111160.0,111150.0,0.00214085]
[1756875965025,1.7873928,111160.0,111150.0,0.00535085]
[1756875965234,1.7388084,111160.0,111150.0,0.00535085]
[1756875965652,1.740901,111160.0,111150.0,0.00535085]
[1756875967450,1.77069777,111160.0,111150.0,0.00535085]
[1756875967839,1.77069777,111160.0,111150.0,0.00214085]
[1756875968043,1.77393777,111160.0,111150.0,0.00014085]
[1756875968283,1.80007539,111160.0,111150.0,0.00014085]
[1756875971314,1.82435392,111160.0,111150.0,0.00014085]
[1756875972325,1.82435584,111160.0,111150.0,0.00014085]
[1756875975622,1.82111584,111160.0,111150.0,0.00014085]
[1756875975904,1.82407584,111160.0,111150.0,0.00014085]
[1756875977734,1.88751584,111160.0,111150.0,0.00014085]
[1756875978131,1.86323539,111160.0,111150.0,0.00014085]
[1756875978337,1.86027539,111160.0,111150.0,0.00014085]
[1756875978795,1.86323539,111160.0,111150.0,0.00014085]
[1756875979375,1.86325401,111160.0,111150.0,0.00014085]
[1756875980190,1.91183841,111160.0,111150.0,0.00014085]
[1756875980430,1.75439841,111160.0,111150.0,0.00540085]
[1756875980640,1.90639841,111160.0,111150.0,0.00540085]
[1756875980893,1.9064004,111160.0,111150.0,0.00540085]
[1756875981908,1.9085504,111160.0,111150.0,0.00540085]
[1756875982939,2.00342987,111160.0,111150.0,0.00014085]
[1756875985871,1.91151388,111160.0,111150.0,0.00014085]
[1756875986357,1.90855388,111160.0,111150.0,0.00014085]
[1756875988111,0.9068812,111160.0,111150.0,0.00540085]
[1756875988315,1.90636388,111160.0,111150.0,0.00540085]
[1756875988538,1.90851388,111160.0,111150.0,0.00540085]
[1756875988739,1.90851388,111160.0,111150.0,0.00219085]
[1756875988962,2.00042987,111160.0,111150.0,0.00219085]
[1756875989145,1.90851388,111160.0,111150.0,0.00219085]
[1756875989374,1.90851388,111160.0,111150.0,0.00540085]
[1756875990243,1.90632388,111160.0,111150.0,0.00540085]
[1756875990489,1.88018626,111160.0,111150.0,0.00540085]
[1756875992483,1.90632388,111160.0,111150.0,0.00540085]
[1756875993064,1.90847388,111160.0,111150.0,0.00540085]
[1756875993308,1.90851536,111160.0,111150.0,0.00540085]
[1756875995210,1.90636536,111160.0,111150.0,0.00540085]
[1756875995431,1.67972334,111160.0,111150.0,0.00540085]
[1756875995641,1.85593349,111160.0,111150.0,0.00540085]
[1756875996688,1.85589349,111160.0,111150.0,0.00540085]
[1756875997837,1.82609672,111160.0,111150.0,0.00540085]
[1756875998040,1.79373342,111160.0,111150.0,0.00540085]
[1756875998448,1.34791826,111160.0,111150.0,0.00540085]
[1756875998646,1.32358811,111160.0,111150.0,0.00540085]
[1756875998877,1.74842445,111160.0,111150.0,0.00540085]
[1756876000244,1.7483688,111160.0,111150.0,0.00540085]
[1756876001856,1.74841614,111160.0,111150.0,0.00540085]
[1756876002277,1.7314961,111160.0,111150.0,0.00540085]
[1756876002603,1.72516022,111160.0,111150.0,0.00540085]
[1756876003068,1.14860388,111160.0,111150.0,0.00540085]
[1756876003298,1.06572577,111160.0,111150.0,0.00540085]
[1756876003512,0.79264943,111160.0,111150.0,0.00540085]
[1756876003732,1.19043316,111160.0,111150.0,0.00540085]
[1756876004142,1.18943316,111160.0,111150.0,0.00540085]
[1756876004349,1.18843316,111160.0,111150.0,0.00540085]
[1756876004545,1.18843316,111160.0,111150.0,0.00640085]
[1756876005061,1.03667316,111160.0,111150.0,0.18633787]
[1756876005474,1.18839316,111160.0,111150.0,0.18633787]
[1756876006020,1.18839316,111160.0,111150.0,0.00640085]
[1756876006636,1.6132295,111160.0,111150.0,0.00640085]
[1756876006840,1.6153695,111160.0,111150.0,0.00313085]
[1756876007043,1.69544271,111160.0,111150.0,0.00114085]
[1756876007531,1.72249488,111160.0,111150.0,0.00114085]
[1756876007742,1.78593488,111160.0,111150.0,0.00114085]
[1756876008929,1.75979726,111160.0,111150.0,0.00114085]
[1756876018808,1.75659726,111160.0,111150.0,0.00114085]
[1756876019896,1.75659726,111160.0,111150.0,0.00313085]
[1756876019897,1.60487726,111160.0,111150.0,0.00313085]
[1756876020128,1.72582049,111160.0,111150.0,0.00636085]
[1756876020563,1.57294049,111160.0,111150.0,0.00636085]
[1756876020773,0.63888899,111160.0,111150.0,0.18629787]
[1756876020996,1.21660533,111160.0,111150.0,0.00636085]
[1756876021203,1.64358167,111160.0,111150.0,0.00636085]
[1756876022079,1.67657844,111160.0,111150.0,0.00114085]
[1756876022494,1.67337844,111160.0,111150.0,0.00114085]
[1756876022948,1.67657844,111160.0,111150.0,0.00114085]
[1756876023769,1.67337844,111160.0,111150.0,0.00114085]
[1756876024351,1.69280564,111160.0,111150.0,0.00114085]
[1756876024964,1.69280564,111160.0,111150.0,0.00313085]
[1756876025714,1.64375516,111160.0,111150.0,0.00313085]
[1756876025917,1.47824776,111160.0,111150.0,0.00636085]
[1756876026132,1.79893516,111160.0,111150.0,0.00114085]
[1756876028281,1.80213516,111160.0,111150.0,0.00114085]
[1756876029289,1.81901444,111160.0,111150.0,0.00114085]
[1756876029685,1.84515206,111160.0,111150.0,0.00114085]
[1756876029884,1.85148146,111160.0,111150.0,0.00114085]
[1756876030983,1.84828146,111160.0,111150.0,0.00114085]
[1756876033219,1.87224028,111160.0,111150.0,0.00114085]
[1756876033669,1.87224036,111160.0,111150.0,0.00114085]
[1756876037025,1.87223733,111160.0,111150.0,0.00114085]
[1756876038245,2.82787953,111160.0,111150.0,0.00114085]
[1756876038486,1.87223733,111160.0,111150.0,0.00114085]
[1756876041086,1.89653497,111160.0,111150.0,0.00114085]
[1756876042277,2.85217717,111160.0,111150.0,0.00114085]
[1756876043879,2.85215996,111160.0,111150.0,0.00114085]
[1756876044085,2.94407595,111160.0,111150.0,0.00114085]
[1756876044294,2.86022562,111160.0,111150.0,0.00114085]
[1756876045345,2.88449994,111160.0,111150.0,0.00114085]
[1756876045782,2.86022562,111160.0,111150.0,0.00014085]
[1756876046185,2.86122562,111160.0,111150.0,0.00014085]
[1756876046386,2.86022562,111160.0,111150.0,0.00014085]
[1756876046784,2.86222562,111160.0,111150.0,0.00014085]
[1756876047161,2.84636124,111160.0,111150.0,0.00014085]
[1756876047361,2.86320849,111160.0,111150.0,0.00014085]
[1756876047566,2.86220849,111160.0,111150.0,0.00014085]
[1756876047969,2.86420849,111160.0,111150.0,0.00014085]
[1756876050490,2.88845033,111160.0,111150.0,0.00014085]
[1756876050692,2.8884376,111160.0,111150.0,0.00014085]
[1756876053432,2.8879176,111160.0,111150.0,0.00014085]
[1756876054132,2.88790471,111160.0,111150.0,0.00014085]
[1756876055138,2.73538471,111160.0,111150.0,0.00014085]
[1756876055415,1.92920251,111160.0,111150.0,0.00528085]
[1756876055534,1.77672251,111160.0,111150.0,0.00528085]
[1756876055735,0.88312262,111160.0,111150.0,0.00528085]
[1756876055940,1.81452298,111160.0,111150.0,0.00528085]
[1756876058998,1.86323974,111160.0,111150.0,0.00528085]
[1756876059418,1.88748158,111160.0,111150.0,0.00528085]
[1756876059646,1.86856159,111160.0,111150.0,0.00528085]
[1756876060116,1.83876482,111160.0,111150.0,0.00528085]
[1756876060333,1.68628482,111160.0,111150.0,0.00528085]
[1756876060634,0.70640078,111160.0,111150.0,0.00528085]
[1756876060730,1.46908551,111160.0,111150.0,0.00528085]
[1756876060945,1.45225099,111160.0,111150.0,0.00528085]
[1756876061157,1.43282379,111160.0,111150.0,0.00528085]
[1756876061596,1.43082379,111160.0,111150.0,0.00528085]
[1756876061811,1.43082379,111160.0,111150.0,0.00728085]
[1756876062704,1.09806296,111160.0,111150.0,0.18721787]
[1756876062920,1.09806296,111160.0,111150.0,0.21193787]
[1756876062921,1.06901079,111160.0,111150.0,0.21193787]
[1756876063116,1.22181079,111160.0,111150.0,0.21293787]
[1756876064072,1.1298548,111160.0,111150.0,0.21293787]
[1756876064919,1.30977563,111160.0,111150.0,0.21293787]
[1756876065143,1.30977563,111160.0,111150.0,0.03300085]
[1756876065574,1.30977563,111160.0,111150.0,0.00828085]
[1756876071081,0.67268083,111160.0,111150.0,0.00828085]
[1756876071277,1.30977563,111160.0,111150.0,0.00828085]
[1756876072386,1.42463044,111160.0,111150.0,0.00314085]
[1756876072579,1.80223223,111160.0,111150.0,0.00314085]
[1756876073060,1.84866127,111160.0,111150.0,0.00314085]
[1756876073390,1.86547935,111160.0,111150.0,0.00214085]
[1756876073588,1.86547935,111160.0,111150.0,0.00014085]
[1756876073884,1.86547935,111160.0,111150.0,0.00114085]
[1756876074313,1.86547935,111160.0,111150.0,0.00014085]
[1756876074521,2.82742828,111160.0,111150.0,0.00014085]
[1756876075813,2.82842828,111160.0,111150.0,0.00014085]
[1756876076459,2.82742828,111160.0,111150.0,0.00014085]
[1756876076873,2.85373126,111160.0,111150.0,0.00014085]
[1756876077085,2.85273126,111160.0,111150.0,0.00014085]
[1756876077293,2.85373126,111160.0,111150.0,0.00014085]
[1756876078344,2.85467363,111160.0,111150.0,0.00014085]
[1756876083801,1.89903143,111160.0,111150.0,0.00014085]
[1756876084001,1.87289381,111160.0,111150.0,0.00014085]
[1756876084731,1.86977381,111160.0,111150.0,0.00014085]
[1756876085521,1.76375359,111160.0,111150.0,0.00014085]
[1756876085952,1.61099359,111160.0,111150.0,0.00528085]
[1756876086153,1.82515359,111160.0,111150.0,0.00528085]
[1756876086359,1.82715359,111160.0,111150.0,0.00528085]
[1756876086532,1.79735682,111160.0,111150.0,0.00528085]
[1756876086734,1.79731682,111160.0,111150.0,0.00528085]
[1756876086946,0.40152646,111160.0,111150.0,0.00528085]
[1756876087189,0.87954137,111160.0,111150.0,0.00528085]
[1756876087405,1.21954137,111160.0,111150.0,0.00528085]
[1756876087830,1.21754137,111160.0,111150.0,0.00528085]
[1756876088689,1.21654137,111160.0,111150.0,0.00528085]
[1756876088896,1.21654137,111160.0,111150.0,0.00628085]
[1756876089442,1.21654137,111160.0,111150.0,0.00828085]
[1756876090080,1.64135236,111160.0,111150.0,0.00828085]
[1756876091387,1.67613913,111160.0,111150.0,0.00314085]
[1756876091599,1.67613913,111160.0,111150.0,0.00214085]
[1756876091840,1.67114913,111160.0,111150.0,0.00735085]
[1756876092057,1.67106913,111160.0,111150.0,0.00735085]
[1756876092492,1.67304913,111160.0,111150.0,0.00535085]
[1756876092715,1.67404913,111160.0,111150.0,0.00228085]
[1756876092901,1.67404913,111160.0,111150.0,0.00114085]
[1756876093139,1.67404913,111160.0,111150.0,0.00014085]
[1756876093354,1.67404913,111160.0,111150.0,0.00228085]
[1756876094140,1.67404913,111160.0,111150.0,0.00535085]
[1756876094942,1.67404913,111160.0,111150.0,0.00228085]
[1756876095167,1.69344693,111160.0,111150.0,0.00228085]
[1756876095708,1.69344693,111160.0,111150.0,0.00535085]
[1756876095915,1.69344693,111160.0,111150.0,0.00228085]
[1756876096633,1.69344693,111160.0,111150.0,0.00535085]
[1756876100163,1.69344693,111160.0,111150.0,0.00014085]
[1756876100372,1.85860891,111160.0,111150.0,0.00014085]
[1756876100740,1.88285075,111160.0,111150.0,0.00014085]
[1756876101389,1.88285057,111160.0,111150.0,0.00014085]
[1756876107828,1.73009057,111160.0,111150.0,0.00014085]
[1756876108034,1.88048057,111160.0,111150.0,0.00014085]
[1756876108262,1.88349057,111160.0,111150.0,0.00014085]
[1756876108481,1.94693057,111160.0,111150.0,0.00014085]
[1756876110855,1.94392057,111160.0,111150.0,0.00535085]
[1756876111068,1.91778295,111160.0,111150.0,0.00535085]
[1756876111435,1.91778295,111160.0,111150.0,0.00228085]
[1756876111645,1.76438295,111160.0,111150.0,0.00014085]
[1756876111840,1.92063295,111160.0,111150.0,0.00014085]
[1756876114033,1.94677057,111160.0,111150.0,0.00014085]
[1756876114342,1.88721788,111160.0,111150.0,0.00014085]
[1756876116660,1.88721827,111160.0,111150.0,0.00014085]
[1756876121189,1.86297643,111160.0,111150.0,0.00014085]
[1756876122041,1.86297703,111160.0,111150.0,0.00014085]
[1756876122341,1.70973703,111160.0,111150.0,0.00014085]
[1756876122537,1.70474703,111160.0,111150.0,0.00510085]
[1756876122724,1.88188354,111160.0,111150.0,0.00510085]
[1756876123152,1.88402354,111160.0,111150.0,0.00510085]
[1756876125012,1.88544301,111160.0,111150.0,0.00510085]
[1756876125245,1.8611865,111160.0,111150.0,0.00510085]
[1756876125658,1.80161264,111160.0,111150.0,0.00510085]
[1756876125835,1.79350882,111160.0,111150.0,0.00510085]
[1756876129089,1.79342882,111160.0,111150.0,0.00510085]
[1756876129752,1.82536559,111160.0,111150.0,0.00214085]
[1756876130600,1.82536559,111160.0,111150.0,0.00014085]
[1756876130839,1.82536559,111160.0,111150.0,0.00214085]
[1756876132108,1.82536559,111160.0,111150.0,0.00510085]
[1756876133674,1.82536559,111160.0,111150.0,0.00214085]
[1756876133917,1.82536559,111160.0,111150.0,0.00014085]
[1756876134381,1.82847559,111160.0,111150.0,0.00014085]
[1756876134834,1.85461321,111160.0,111150.0,0.00014085]
[1756876135303,1.88697651,111160.0,111150.0,0.00014085]
[1756876136795,1.86271703,111160.0,111150.0,0.00014085]
[1756876138139,1.83657941,111160.0,111150.0,0.00014085]
[1756876139352,1.86271703,111160.0,111150.0,0.00014085]
[1756876140343,1.70688703,111160.0,111150.0,0.00214085]
[1756876140581,1.8836042,111160.0,111150.0,0.00510085]
[1756876140779,1.8814642,111160.0,111150.0,0.00510085]
[1756876140991,1.7290242,111160.0,111150.0,0.00510085]
[1756876141196,1.8814642,111160.0,111150.0,0.00510085]
[1756876141598,1.88147927,111160.0,111150.0,0.00510085]
[1756876142605,1.88361927,111160.0,111150.0,0.00510085]
[1756876145111,1.88361531,111160.0,111150.0,0.00510085]
[1756876145962,1.72903531,111160.0,111150.0,0.00510085]
[1756876146110,1.88131531,111160.0,111150.0,0.00510085]
[1756876146307,1.72903531,111160.0,111150.0,0.00510085]
[1756876146506,1.85517769,111160.0,111150.0,0.00510085]
[1756876146706,1.82281439,111160.0,111150.0,0.00510085]
[1756876147692,1.89911281,111160.0,111150.0,0.00510085]
[1756876148132,1.90125281,111160.0,111150.0,0.00510085]
[1756876148465,1.90125652,111160.0,111150.0,0.00510085]
[1756876149282,1.93361982,111160.0,111150.0,0.00510085]
[1756876150558,1.96341659,111160.0,111150.0,0.00510085]
[1756876150935,1.96127659,111160.0,111150.0,0.00510085]
[1756876151145,1.89903652,111160.0,111150.0,0.00510085]
[1756876152170,1.93079329,111160.0,111150.0,0.00510085]
[1756876153388,1.92883329,111160.0,111150.0,0.00510085]
[1756876154150,1.93079329,111160.0,111150.0,0.00510085]
[1756876155279,1.96315659,111160.0,111150.0,0.00510085]
[1756876156258,1.96315659,111160.0,111150.0,0.00014085]
[1756876161684,1.93079329,111160.0,111150.0,0.00014085]
[1756876162162,2.88960046,111160.0,111150.0,0.00014085]
[1756876162397,3.00765407,111160.0,111150.0,0.00014085]
[1756876162612,2.91573808,111160.0,111150.0,0.00014085]
[1756876168251,2.88960046,111160.0,111150.0,0.00014085]
[1756876169128,2.88960066,111160.0,111150.0,0.00014085]
[1756876170085,2.91573828,111160.0,111150.0,0.00014085]
[1756876172354,2.94810158,111160.0,111150.0,0.00014085]
[1756876173128,1.83513441,111160.0,111150.0,0.00537085]
[1756876173363,1.80899679,111160.0,111150.0,0.00537085]
[1756876173595,1.92907349,111160.0,111150.0,0.00537085]
[1756876173823,1.77663349,111160.0,111150.0,0.00537085]
[1756876174042,1.92907349,111160.0,111150.0,0.00537085]
[1756876175386,1.74683672,111160.0,111150.0,0.00537085]
[1756876175603,1.89931672,111160.0,111150.0,0.00537085]
[1756876176039,1.89931952,111160.0,111150.0,0.00537085]
[1756876176470,1.92911629,111160.0,111150.0,0.00537085]
[1756876178667,1.77663629,111160.0,111150.0,0.00537085]
[1756876179024,1.58062713,111160.0,111150.0,0.00537085]
[1756876179236,1.89919952,111160.0,111150.0,0.00537085]
[1756876181088,1.92899629,111160.0,111150.0,0.00537085]
[1756876181493,1.90471912,111160.0,111150.0,0.00537085]
[1756876183249,1.58606673,111160.0,111150.0,0.00537085]
[1756876183459,1.87484235,111160.0,111150.0,0.00537085]
[1756876183908,1.55626996,111160.0,111150.0,0.00537085]
[1756876184134,1.38305114,111160.0,111150.0,0.00537085]
[1756876184380,0.87500818,111160.0,111150.0,0.00537085]
[1756876184587,1.51215296,111160.0,111150.0,0.00537085]
[1756876185925,1.54194973,111160.0,111150.0,0.00537085]
[1756876187599,1.86257212,111160.0,111150.0,0.00537085]
[1756876188011,1.86257212,111160.0,111150.0,0.00014085]
[1756876188225,1.86578212,111160.0,111150.0,0.00014085]
[1756876188445,1.86257212,111160.0,111150.0,0.00014085]
[1756876193104,1.84317432,111160.0,111150.0,0.00014085]
[1756876196593,1.86256404,111160.0,111150.0,0.00014085]
[1756876197400,1.86577404,111160.0,111150.0,0.00014085]
[1756876197643,1.88671286,111160.0,111150.0,0.00014085]
[1756876197874,1.90354437,111160.0,111150.0,0.00014085]
[1756876198764,1.89828437,111160.0,111150.0,0.00220085]
[1756876198968,1.89828437,111160.0,111150.0,0.00513085]
[1756876199185,1.90033437,111160.0,111150.0,0.00513085]
[1756876199377,1.90033437,111160.0,111150.0,0.00014085]
[1756876203981,1.88350286,111160.0,111150.0,0.00014085]
[1756876204408,1.90034363,111160.0,111150.0,0.00220085]
[1756876205872,1.74806363,111160.0,111150.0,0.00220085]
[1756876206099,1.89990363,111160.0,111150.0,0.00513085]
[1756876207268,1.90622099,111160.0,111150.0,0.00513085]
[1756876207486,1.79997622,111160.0,111150.0,0.00513085]
[1756876208351,1.77468809,111160.0,111150.0,0.00513085]
[1756876210400,1.74489132,111160.0,111150.0,0.00513085]
[1756876210619,1.6605525,111160.0,111150.0,0.18506787]
[1756876210835,1.2358163,111160.0,111150.0,0.18506787]
[1756876211717,1.0840163,111160.0,111150.0,0.18506787]
[1756876211946,1.21642658,111160.0,111150.0,0.18506787]
[1756876212613,1.06462658,111160.0,111150.0,0.18506787]
[1756876212871,1.21642658,111160.0,111150.0,0.18506787]
[1756876213093,1.21642658,111160.0,111150.0,0.00513085]
[1756876213307,1.52119955,111160.0,111150.0,0.00220085]
[1756876213516,1.67091955,111160.0,111150.0,0.00534085]
[1756876213940,1.64112278,111160.0,111150.0,0.00534085]
[1756876217234,1.64112278,111160.0,111150.0,0.18527787]
[1756876219976,1.48936278,111160.0,111150.0,0.18527787]
[1756876220278,1.21622658,111160.0,111150.0,0.18527787]
[1756876220682,1.06462658,111160.0,111150.0,0.18527787]
[1756876220889,0.88470575,111160.0,111150.0,0.18527787]
[1756876221100,0.94438976,111160.0,111150.0,0.18527787]
[1756876221985,0.36805356,111160.0,111150.0,0.33687787]
[1756876222199,0.02805356,111160.0,111150.0,0.33687787]
[1756876222628,0.4257362,111160.0,111150.0,0.33687787]
[1756876222834,0.4257362,111160.0,111150.0,0.3639237]
[1756876223059,1.14913292,111180.0,111150.0,0.3639237]
[1756876223274,0.34,111170.0,111160.0,0.18215561]
[1756876223697,0.34,111170.0,111160.0,0.18425561]
[1756876223912,0.34,111170.0,111160.0,0.1820066]
[1756876224147,0.34,111170.0,111160.0,0.1851466]
[1756876224580,0.34,111170.0,111160.0,0.21219032]
[1756876224581,0.7647362,111170.0,111160.0,0.21219032]
[1756876225015,0.7667762,111170.0,111160.0,0.35855032]
[1756876225231,0.7667762,111170.0,111160.0,0.36065032]
[1756876225443,0.7667762,111170.0,111160.0,0.36479032]
[1756876225845,0.7647362,111170.0,111160.0,0.36479032]
[1756876226274,0.7647362,111170.0,111160.0,0.36579032]
[1756876229454,0.7647362,111170.0,111160.0,0.21419032]